Workbook

Sheet Algemene gegevens
A1: 1. Algemene gegevens | I1: Man
I2: Vrouw
A3: Bestemd voor
A4: Naam: | D4: Adres:
A5: Postcode: | D5: Woonplaats:
A8: Huishoudsamenstelling
B9: Naam | C9: m/v | D9: Leeftijd | F9: Beroep
A10: 1. | B10: Henk | C10: Man | D10: 47 | E10: jaar | F10: accountant
A11: 2. | B11: Sandra | C11: Vrouw | D11: 42 | E11: jaar | F11: Zorgverleenster
A12: 3. | E12: jaar
A13: 4. | E13: jaar
A14: 5. | E14: jaar
A15: 6. | E15: jaar

Sheet Inkomsten
A1: 2. Inkomsten
B2: Huidige situatie | D2: Nieuwe situatie
A3: Netto salaris/uitkering | B3: 2400 | D3: 2600
A4: Netto salaris/uitkering partner | B4: 2000 | D4: 2000
A5: Vakantiegeld | B5: 0 | D5: 0
A6: Vakantiegeld partner | B6: 0 | D6: 0
A7: Tegemoetkoming schoolkosten | B7: 0 | D7: 0
A8: Zorgtoeslag | B8: 0 | D8: 0
A9: Huurtoeslag | B9: 0 | D9: 0
A10: Kindgebonden budget | B10: 0 | D10: 0
A11: Kinderopvangtoeslag | B11: 0 | D11: 0
A12: Kinderbijslag | B12: 125 | D12: 125
A13: Voorlopige teruggaaf | B13: 0 | D13: 0
A14: Eenmalige belastingteruggaaf | B14: 1800 | D14: 1800
A15: Overige inkomsten | B15: 0 | D15: 0
A17: Totaal inkomsten | B17: =SUM(B3:B15) -> 6325 | D17: =SUM(D3:D15) -> 6525

Sheet Uitgaven
A1: 3. Uitgaven
A3: 3.1 Vaste lasten
C5: Huidige situatie | E5: Nieuwe situatie
A6: Woning
B7: Huur/hypotheek | C7: 850 | E7: 1350
B8: Servicekosten, erfpacht | C8: 0 | E8: 0
D9: =SUM(C7:C8) -> 850 | F9: =SUM(E7:E8) -> 1350
A11: Energie & heffingen
B12: Gas, elektra | E12: 150
B13: Water | C13: 25 | E13: 25
B14: Reinigingsheffing | C14: 0 | E14: 0
B15: Waterschapsheffing | C15: 0 | E15: 0
B16: Rioolrecht | C16: 0 | E16: 0
B17: Overige heffingen (bv. hondenbelasting) | C17: 0 | E17: 0
B18: Onroerende zaakbelasting | C18: 0 | E18: 0
D19: =SUM(C12:C18) -> 25 | F19: =SUM(E12:E18) -> 175
A21: Verzekeringen
B22: Zorgverzekering | C22: 250 | E22: 250
B23: Aansprakelijkheidsverzekering | C23: 0 | E23: 0
B24: Inboedelverzekering | C24: 0 | E24: 0
B25: Opstalverzekering | C25: 0 | E25: 0
B26: Overige verzekeringen | C26: 0 | E26: 0
D27: =SUM(C22:C26) -> 250 | F27: =SUM(E22:E26) -> 250
A29: Abonnementen & contributies
B30: Vaste telefoon, tv, internet | C30: 0 | E30: 0
B31: Mobiele telefoon | C31: 0 | E31: 0
B32: Abonnementen | C32: 0 | E32: 0
B33: Contributies | C33: 0 | E33: 0
D34: =SUM(C30:C33) -> 0 | F34: =SUM(E30:E33) -> 0
A36: School-/ studiekosten & kinderopvang
B37: Schoolkosten | C37: 0 | E37: 0
B38: Studiekosten | C38: 0 | E38: 0
B39: Kinderopvang | C39: 0 | E39: 0
D40: =SUM(C37:C39) -> 0 | F40: =SUM(E37:E39) -> 0
A42: Vervoer
B43: Wegenbelasting | C43: 0 | E43: 0
B44: Autoverzekering | C44: 0 | E44: 0
B45: Onderhoud vervoersmiddel | C45: 0 | E45: 0
B46: Afbetaling, afschrijving | C46: 0 | E46: 0
B47: Brandstof | C47: 0 | E47: 0
B48: OV-kosten | C48: 0 | E48: 0
B49: Overige | C49: 0 | E49: 0
D50: =SUM(C43:C49) -> 0 | F50: =SUM(E43:E49) -> 0
A52: Overige vaste lasten
B53: Alimentatie | C53: 0 | E53: 0
B54: Afbetalingen (lening, rente) | C54: 0 | E54: 0
B55: Overig | C55: 0 | E55: 0
D56: =SUM(C53:C55) -> 0 | F56: =SUM(E53:E55) -> 0
A58: Totaal vaste uitgaven | D58: =SUM(D56+D50+D40+D34+D27+D19+D9) -> 1125 | F58: =SUM(F56+F50+F40+F34+F27+F19+F9) -> 1775
A59: 3.2 Reserveringsuitgaven
C61: Huidige situatie | E61: Nieuwe situatie
A62: Kleding & schoenen
B63: Kleding, schoenen | C63: 0 | E63: 0
B64: Overig | C64: 0 | E64: 0
D65: =SUM(C63:C64) -> 0 | F65: =SUM(E63:E64) -> 0
A67: Inventaris, huis & tuin
B68: Inventaris | C68: 0 | E68: 0
B69: Onderhoud aan huis en tuin | C69: 0 | E69: 0
D70: =SUM(C68:C69) -> 0 | F70: =SUM(E68:E69) -> 0
A72: Vrije tijd en hobby's
B73: Hobby's | C73: 0 | E73: 0
B74: Uitgaan | C74: 0 | E74: 0
B75: Vakantie | C75: 0 | E75: 0
D76: =SUM(C73:C75) -> 0 | F76: =SUM(E73:E75) -> 0
A78: Sparen & onvoorziene uitgaven
B79: Niet vergoede ziektekosten | C79: 0 | E79: 0
B80: Sparen | C80: 0 | E80: 0
B81: Overig | C81: 0 | E81: 0
D82: =SUM(C79:C81) -> 0 | F82: =SUM(E79:E81) -> 0
A84: Dagelijkse boodschappen
B85: Voeding | C85: 0 | E85: 0
B86: Was- en schoonmaakartikelen | C86: 0 | E86: 0
B87: Persoonlijke verzorging | C87: 0 | E87: 0
D88: =SUM(C85:C87) -> 0 | F88: =SUM(E85:E87) -> 0
A90: Overige huishoudelijke uitgaven
B91: Zakgeld kinderen | C91: 0 | E91: 0
B92: Huisdieren | C92: 0 | E92: 0
B93: Cadeaus | C93: 0 | E93: 0
B94: Huishoudelijke hulp | C94: 0 | E94: 0
B95: Roken | C95: 0 | E95: 0
B96: Diversen | C96: 0 | E96: 0
D97: =SUM(C91:C96) -> 0 | F97: =SUM(E91:E96) -> 0
A99: Totaal reserveringsuitgaven | D99: =SUM(D97+D88+D82+D76+D70+D65) -> 0 | F99: =SUM(F97+F88+F82+F76+F70+F65) -> 0

Sheet Resultaat
A1: 4. Totaal inkomsten en uitgaven
B3: Huidige situatie | E3: Nieuwe situatie
A4: 2. Totaal inkomsten | C4: =Inkomsten!B17 -> 6325 | F4: =Inkomsten!D17 -> 6525
A6: 3.1 Totaal vaste lasten | B6: =Uitgaven!D58 -> 1125 | E6: =Uitgaven!F58 -> 1775
A7: 3.2 Totaal reserveringsuitgaven | B7: =Uitgaven!D99 -> 0 | E7: =Uitgaven!F99 -> 0
A8: 3. Totaal uitgaven | C8: =B6+B7 -> 1125 | F8: =E6+E7 -> 1775
A10: Saldo | C10: =C4-C8 -> 5200 | F10: =F4-F8 -> 4750

Sheet "Taart"
A1: Uitgaventaart
A2: Woning | B2: =Uitgaven!D9 -> 850
A3: Energie & heffingen | B3: =Uitgaven!D19 -> 25
A4: Verzekeringen | B4: =Uitgaven!D27 -> 250
A5: Abonnementen & contributies | B5: =Uitgaven!D34 -> 0
A6: School-/ studiekosten & kinderopvang | B6: =Uitgaven!D40 -> 0
A7: Vervoer | B7: =Uitgaven!D50 -> 0
A8: Overige vaste lasten | B8: =Uitgaven!D56 -> 0
A9: Kleding & schoenen | B9: =Uitgaven!D65 -> 0
A10: Inventaris, huis & tuin | B10: =Uitgaven!D70 -> 0
A11: Vrije tijd en hobby's | B11: =Uitgaven!D76 -> 0
A12: Sparen & onvoorziene uitgaven | B12: =Uitgaven!D82 -> 0
A13: Dagelijkse boodschappen | B13: =Uitgaven!D88 -> 0
A14: Overige huishoudelijke uitgaven | B14: =Uitgaven!D97 -> 0
